bitfinex-derivatives/quotes_ETHF0:USTF0_20250107
["timestamp","ask_amount","ask_price","bid_price","bid_amount"]
[1736284718472,0.29316,3412.9,3412.8,3.50096]
[1736284718770,0.29316,3412.9,3412.8,3.2078]
[1736284719277,1.2112,3413.0,3412.9,0.29316]
[1736284719474,2.531,3413.2,3412.8,4.409]
[1736284719680,4.82105781,3413.2,3413.1,0.29314]
[1736284719871,5.11419781,3413.2,3413.1,0.29314]
[1736284720072,4.82105781,3413.2,3413.1,1.60314]
[1736284720272,5.11419781,3413.2,3413.1,1.60314]
[1736284720672,5.11419781,3413.2,3413.1,1.31]
[1736284721085,2.82414,3413.2,3413.1,1.31]
[1736284721578,2.82414,3413.2,3413.1,1.60314]
[1736284721778,2.82414,3413.2,3413.1,0.29314]
[1736284722178,0.29314,3413.2,3413.1,0.29314]
[1736284722379,2.58319781,3413.2,3413.1,0.29314]
[1736284723075,2.29005781,3413.2,3413.1,0.29314]
[1736284725380,2.29005781,3413.5,3413.4,0.29312]
[1736284725579,2.29005781,3413.5,3413.4,5.85376203]
[1736284725780,2.29005781,3413.5,3413.4,3.50092]
[1736284726276,2.29005781,3413.7,3413.4,5.85376203]
[1736284726478,2.29005781,3413.7,3413.6,0.2931]
[1736284726781,2.29005781,3413.7,3413.6,1.6031]
[1736284727378,2.29005781,3413.7,3413.6,1.31]
[1736284727583,2.29005781,3413.7,3413.6,1.6031]
[1736284728085,0.29309,3413.7,3413.6,1.31]
[1736284728277,3.73694781,3413.8,3413.6,1.6031]
[1736284728682,3.44385781,3413.8,3413.6,1.31]
[1736284728878,0.29309,3413.7,3413.6,1.31]
[1736284729679,0.29309,3413.7,3413.6,1.6031]
[1736284729874,3.44385781,3413.8,3413.6,1.31]
[1736284730083,3.73694781,3413.8,3413.6,1.6031]
[1736284730281,3.44385781,3413.8,3413.6,1.6031]
[1736284730481,2.29005781,3413.7,3413.6,1.31]
[1736284730688,2.29005781,3413.7,3413.6,1.6031]
[1736284732976,2.29005781,3413.8,3413.6,1.31]
[1736284733179,2.29005781,3413.8,3413.7,0.29309]
[1736284733782,2.58314781,3413.8,3413.6,1.6031]
[1736284733982,2.58314781,3413.8,3413.6,1.31]
[1736284733983,2.29005781,3413.8,3413.6,1.31]
[1736284734485,2.29005781,3413.8,3413.7,0.29309]
[1736284735686,2.58313781,3413.8,3413.6,1.6031]
[1736284735882,2.29005781,3413.8,3413.6,1.31]
[1736284736090,0.2931,3413.6,3413.5,4.5178]
[1736284736594,1.5079,3413.6,3413.5,4.5178]
[1736284737092,4.95436183,3413.6,3413.5,4.5178]
[1736284738585,4.95436183,3413.6,3413.5,3.2078]
[1736284738786,1.94769917,3413.6,3413.5,3.2078]
[1736284740287,1.94769917,3413.6,3413.5,3.50091]
[1736284740288,1.5079,3413.6,3413.5,3.50091]
[1736284740793,0.2931,3413.6,3413.5,3.50091]
[1736284741683,0.73289917,3413.6,3413.5,3.2078]
[1736284742083,0.43979917,3413.6,3412.9,4.3908]
[1736284742295,0.29313,3413.3,3413.2,0.29313]
[1736284742487,0.29313,3413.3,3413.0,1.308]
[1736284742687,0.29313,3413.3,3413.1,0.29314]
[1736284742994,1.0995,3413.5,3413.1,2.35284203]
[1736284743195,1.0985,3413.2,3413.0,1.308]
[1736284743396,1.0985,3413.2,3412.9,3.2078]
[1736284743596,1.39164,3413.2,3413.0,1.60115]
[1736284743794,2.30161711,3413.3,3413.0,1.308]
[1736284744098,1.39165,3413.1,3413.0,1.308]
[1736284744299,3.40011711,3413.1,3413.0,1.60115]
[1736284744495,2.30161711,3413.1,3413.0,1.60115]
[1736284745796,2.30161711,3413.3,3413.0,1.308]
[1736284745994,2.30161711,3413.3,3413.2,0.29314]
[1736284748903,0.29314,3413.1,3413.0,1.308]
[1736284749107,2.30161711,3413.3,3413.0,1.308]
[1736284749299,2.30161711,3413.3,3413.2,0.29314]
[1736284749901,8.65254567,3413.4,3413.0,1.308]
[1736284750100,8.35942567,3413.4,3413.3,0.29313]
[1736284750505,8.65254567,3413.4,3413.2,0.29313]
[1736284750698,8.35942567,3413.4,3413.3,0.29313]
[1736284751204,5.34682316,3413.4,3413.3,0.29313]
[1736284751410,5.63994316,3413.4,3413.2,0.29313]
[1736284751605,5.34682316,3413.4,3413.3,0.29313]
[1736284751801,5.63994316,3413.4,3413.2,0.29313]
[1736284752504,5.34682316,3413.4,3413.3,0.29313]
[1736284753207,0.43982316,3413.4,3413.3,0.29313]
[1736284753409,0.43982316,3413.4,3413.3,3.50093]
[1736284754005,2.30153992,3413.6,3413.4,0.29312]
[1736284754203,2.30153992,3413.6,3413.5,1.46481]
[1736284755504,2.30097788,3414.1,3413.5,6.1717]
[1736284755705,2.30097788,3414.1,3414.0,5.85371203]
[1736284756003,1.81997788,3414.1,3414.0,7.16171203]
[1736284756208,1.17744888,3414.1,3414.0,7.16171203]
[1736284756407,0.08694888,3414.1,3414.0,7.16171203]
[1736284756609,3.45230989,3414.2,3414.1,0.29306]
[1736284756810,3.45230989,3414.2,3414.1,1.37986]
[1736284757805,3.45230989,3414.9,3414.0,3.44858292]
[1736284758010,1.1736,3414.5,3413.8,3.50088]
[1736284758207,0.29308,3413.9,3413.8,3.2078]
[1736284758404,2.325,3414.4,3413.8,3.2078]
[1736284758608,0.29308,3413.9,3413.8,3.2078]
[1736284758810,0.29308,3413.8,3413.7,5.85300976]
[1736284759005,1.1736,3413.8,3413.7,5.85300976]
[1736284759407,1.1736,3413.8,3413.7,1.308]
[1736284759711,1.46668,3413.8,3413.7,1.308]
[1736284760909,0.29309,3413.7,3413.6,1.308]
[1736284761116,1.46539,3413.7,3413.6,1.308]
[1736284761608,0.29311,3413.5,3413.4,1.308]
[1736284764410,1.1723,3413.7,3413.4,1.308]
[1736284764708,4.62590989,3413.8,3413.6,0.2931]
[1736284764907,4.62590989,3413.8,3413.4,1.308]
[1736284765116,4.91899989,3413.8,3413.6,0.2931]
[1736284765716,4.62590989,3413.8,3413.4,1.308]
[1736284765919,0.29311,3413.5,3413.4,1.308]
[1736284768414,4.62590989,3413.8,3412.8,4.54500976]
[1736284768415,0.29315,3413.0,3412.8,4.54500976]
[1736284768617,1.41696,3412.9,3412.8,4.54500976]
[1736284769216,1.41696,3412.9,3412.6,1.60119]
[1736284769217,0.29317,3412.8,3412.6,1.60119]
[1736284769415,0.29318,3412.7,3412.6,1.308]
[1736284769821,4.907,3413.4,3412.6,1.308]
[1736284770010,1.0914,3413.3,3412.9,3.2078]
[1736284770321,0.29316,3412.9,3412.7,0.29317]
[1736284770510,1.0914,3413.3,3412.6,3.66084203]
[1736284770714,1.0914,3413.3,3412.5,3.2078]
[1736284770715,3.45336722,3413.0,3412.5,3.2078]
[1736284770915,0.29318,3412.8,3412.5,3.50099]
[1736284771117,0.29317,3412.8,3412.6,1.306]
[1736284771320,1.38458,3412.7,3412.6,1.306]
[1736284772121,1.0914,3412.7,3412.6,1.306]
[1736284772316,1.0914,3412.7,3412.6,1.59919]
[1736284772522,1.0914,3412.7,3412.6,1.306]
[1736284773024,1.38458,3412.7,3412.6,1.306]
[1736284773222,1.0914,3412.7,3412.6,1.59919]
[1736284775426,1.38458,3412.7,3412.6,1.306]
[1736284777429,4.83794722,3412.7,3412.6,1.306]
[1736284778425,4.54476722,3412.7,3412.6,1.306]
[1736284778626,4.83794722,3412.7,3412.6,1.59919]
[1736284778826,1.38458,3412.7,3412.6,1.59919]
[1736284780243,1.0914,3412.7,3412.5,3.2078]
[1736284780427,0.29319,3412.6,3412.5,3.2078]
[1736284780636,0.29319,3412.6,3411.7,3.2078]
[1736284780637,4.907,3412.6,3411.7,3.2078]
[1736284780937,2.64610203,3411.8,3411.7,3.2078]
[1736284781530,7.35284203,3411.8,3411.4,4.54500976]
[1736284781724,5.85392203,3411.5,3411.4,2.73390976]
[1736284781926,4.907,3411.4,3411.3,6.81751465]
[1736284782123,5.20029,3411.4,3411.3,6.81751465]
[1736284782331,0.29331,3411.2,3411.1,9.09001953]
[1736284782532,2.64615203,3411.2,3411.1,7.29561953]
[1736284782837,2.64615203,3411.2,3411.1,5.73021953]
[1736284783323,0.29336,3410.7,3410.6,0.29336]
[1736284783528,4.907,3411.1,3410.5,3.2078]
[1736284783832,4.907,3411.1,3410.4,1.306]
[1736284783833,4.907,3411.1,3411.0,0.29333]
[1736284784334,4.907,3411.1,3411.0,1.46793]
[1736284784631,3.44173404,3411.4,3411.0,3.82077203]
[1736284784825,3.44173404,3411.4,3411.3,3.5011]
[1736284785029,3.44173404,3411.4,3411.3,4.8071]
[1736284785737,0.29325,3411.9,3411.3,4.5138]
[1736284786032,3.50105,3412.0,3411.4,1.0715]
[1736284786338,0.29324,3412.0,3411.9,0.29324]
[1736284786535,0.29325,3412.0,3411.8,0.29325]
[1736284786731,3.44173404,3412.3,3411.9,2.35284203]
[1736284787037,3.73492404,3412.6,3412.5,0.2932]
[1736284787426,3.44173404,3412.6,3412.5,0.2932]
[1736284787935,3.73492404,3412.6,3412.5,0.2932]
[1736284788234,0.29319,3412.6,3412.5,0.2932]
[1736284788433,0.29317,3412.8,3412.7,0.29318]
[1736284788632,3.46924203,3413.0,3412.5,3.2078]
[1736284788633,1.1164,3413.0,3412.5,3.2078]
[1736284788833,0.29317,3412.8,3412.7,0.29318]
[1736284789739,0.29318,3412.7,3412.5,3.50099]
[1736284790037,0.73285,3413.2,3412.5,3.2078]
[1736284790238,0.29317,3412.8,3412.7,0.29318]
[1736284790433,0.29316,3413.0,3412.9,0.29316]
[1736284790635,4.3094,3413.3,3412.8,1.306]
[1736284790835,0.29316,3412.9,3412.8,1.59917]
[1736284791040,0.29316,3412.9,3412.8,1.306]
[1736284791940,0.29319,3412.6,3412.5,3.2078]
[1736284794347,5.56064203,3412.7,3412.2,1.306]
[1736284794537,2.64605203,3412.3,3412.2,1.306]
[1736284794732,5.56064203,3412.3,3411.7,2.1883]
[1736284795043,5.56064203,3412.3,3411.6,1.306]
[1736284795044,0.29327,3411.7,3411.6,1.306]
[1736284795242,0.29327,3411.7,3411.3,0.29329]
[1736284795243,3.08595203,3412.0,3411.2,1.0736]
[1736284795542,0.2933,3411.3,3411.2,1.0736]
[1736284795731,0.2933,3411.3,3411.2,2.3796]
[1736284795937,0.2933,3411.3,3411.2,1.306]
[1736284800241,0.2933,3411.4,3411.3,0.29329]
[1736284800435,0.29329,3411.5,3411.4,0.29328]
[1736284800642,0.29329,3411.5,3411.4,0.29329]
[1736284800848,3.1618,3411.7,3411.2,1.306]
[1736284800849,0.2933,3411.3,3411.2,1.306]
[1736284801248,2.35284203,3411.4,3410.8,2.3602]
[1736284801449,0.29333,3410.9,3410.8,2.3602]
[1736284801744,5.56064203,3411.1,3410.5,5.4498]
[1736284801940,0.29336,3410.6,3410.5,5.4498]
[1736284802839,0.29336,3410.6,3410.5,3.2078]
[1736284804945,0.29339,3410.2,3410.1,0.2934]
[1736284805242,0.29339,3410.2,3410.1,1.305]
[1736284805847,1.1045,3410.8,3409.9,5.4251]
[1736284805848,4.2663,3410.8,3409.9,5.4251]
[1736284806151,0.2934,3410.1,3410.0,1.305]
[1736284806640,0.29341,3410.0,3409.9,5.4251]
[1736284810250,3.54225437,3410.6,3409.9,5.4251]
[1736284810446,3.1618,3410.8,3409.9,8.23393437]
[1736284810645,3.1618,3410.8,3410.3,0.29338]
[1736284810646,0.29338,3410.4,3410.3,0.29338]
[1736284810846,0.29337,3410.5,3410.4,0.29337]
[1736284811044,0.29337,3410.5,3410.4,1.0916]
[1736284812051,0.29338,3410.4,3410.3,1.305]
[1736284812745,0.29341,3410.0,3409.9,5.4251]
[1736284812948,0.29341,3410.0,3409.9,5.71852]
[1736284813343,0.2934,3410.3,3410.2,0.29338]
[1736284813947,0.2934,3410.3,3409.9,5.4251]
[1736284813948,0.29341,3410.0,3409.9,5.4251]
[1736284814250,0.73343,3410.5,3409.9,5.4251]
[1736284814445,3.1618,3410.6,3409.9,5.4251]
[1736284814649,0.2934,3410.3,3410.2,0.29339]
[1736284815442,3.1618,3410.6,3409.9,5.4251]
[1736284815648,0.2934,3410.1,3410.0,1.5984]
[1736284816046,0.29341,3410.0,3409.9,6.7301]
[1736284817252,0.29344,3409.7,3409.6,1.0607]
[1736284818145,0.29345,3409.5,3409.4,3.2078]
[1736284818345,0.29353,3408.7,3408.6,0.29353]
[1736284818548,0.29353,3408.6,3408.5,3.2078]
[1736284818848,0.29353,3408.6,3408.5,3.50134]
[1736284819150,0.29349,3409.2,3409.1,0.29348]
[1736284819352,3.45528,3409.3,3409.2,0.29348]
[1736284819848,0.29348,3409.2,3409.1,3.2512]
[1736284820046,3.1618,3409.3,3408.6,3.2078]
[1736284820243,3.1618,3409.3,3408.5,1.9462]
[1736284820448,0.29353,3408.6,3408.5,1.9462]
[1736284821042,6.01663437,3409.1,3408.2,4.5128]
[1736284821353,6.01663437,3409.1,3408.2,3.2078]
[1736284821354,0.29356,3408.3,3408.2,3.2078]
[1736284822354,0.29356,3408.3,3408.2,3.50137]
[1736284822845,0.29356,3408.3,3408.2,3.2078]
[1736284823151,0.29356,3408.4,3408.3,0.29355]
[1736284823451,2.80883437,3408.7,3407.9,0.986]
[1736284823847,2.80883437,3408.7,3408.3,0.29355]
[1736284823848,0.29356,3408.4,3408.3,0.29355]
[1736284824152,0.29357,3408.1,3408.0,3.2078]
[1736284826151,3.1618,3408.4,3408.0,3.2078]
[1736284826453,3.45535,3408.4,3408.3,0.29356]
[1736284827252,3.1618,3408.4,3408.0,3.2078]
[1736284827646,0.29357,3408.1,3408.0,3.50138]
[1736284827941,0.29357,3408.1,3408.0,3.2078]
[1736284829349,0.29363,3407.5,3407.4,0.29363]
[1736284829952,2.80883437,3407.9,3407.3,3.2078]
[1736284830145,0.29364,3407.4,3407.3,3.2078]
[1736284832453,0.29364,3407.4,3407.3,3.50144]
[1736284832653,0.29364,3407.4,3407.3,4.1929]
[1736284832855,0.29364,3407.4,3407.3,5.1417]
[1736284833858,0.29364,3407.4,3407.3,3.2078]
[1736284834048,0.29367,3407.0,3406.9,3.2078]
[1736284835952,3.1618,3407.6,3406.9,3.2078]
[1736284836154,0.73411,3407.4,3406.9,3.2078]
[1736284836349,0.2937,3406.7,3406.6,2.9939]
[1736284837259,0.2937,3406.7,3406.6,3.2876]
[1736284837456,0.2937,3406.7,3406.6,1.973]
[1736284837663,0.29372,3406.4,3406.3,3.2078]
[1736284838949,0.73417,3407.1,3406.3,3.2078]
[1736284839150,6.3696,3407.3,3406.4,0.73431]
[1736284839357,0.73399,3408.0,3407.2,3.2078]
[1736284839563,0.29364,3407.4,3407.3,4.3181]
[1736284840059,0.29364,3407.4,3406.8,3.2078]
[1736284840269,0.29367,3407.0,3406.9,1.01]
[1736284841161,0.29367,3407.0,3406.9,1.30368]
[1736284841354,0.29367,3407.0,3406.9,1.01]
[1736284842266,0.29367,3407.0,3406.7,1.304]
[1736284842267,0.29369,3406.8,3406.7,1.304]
[1736284845463,0.29369,3406.8,3406.7,1.5977]
[1736284846462,0.29369,3406.8,3406.7,1.304]
[1736284846864,0.29369,3406.8,3406.7,1.5977]
[1736284848758,0.29369,3406.8,3406.7,1.304]
[1736284849866,0.2937,3406.7,3406.6,3.3136]
[1736284850272,0.2937,3406.7,3406.6,3.6073]
[1736284850671,0.2937,3406.7,3406.6,3.3136]
[1736284852366,0.2937,3406.7,3406.6,3.6073]
[1736284852565,0.2937,3406.7,3406.6,3.3136]
[1736284852771,0.2937,3406.7,3406.6,3.6073]
[1736284853075,0.2937,3406.7,3406.6,3.3136]
[1736284854366,2.80883437,3406.7,3406.5,0.9663]
[1736284854569,0.29374,3406.2,3406.1,3.0549]
[1736284855475,0.29374,3406.2,3406.1,3.34865]
[1736284855676,3.2078,3406.7,3406.1,3.0549]
[1736284855977,3.2078,3406.7,3406.2,3.2078]
[1736284856269,3.94206,3406.7,3406.2,3.2078]
[1736284856472,0.29373,3406.3,3406.2,3.2078]
[1736284860474,0.29374,3406.2,3406.1,3.0549]
[1736284860967,0.29374,3406.2,3406.1,1.0002]
[1736284861169,0.29374,3406.2,3405.7,4.5098]
[1736284861170,0.29376,3405.9,3405.8,0.9673]
[1736284861372,0.29376,3405.9,3405.8,1.9974]
[1736284861871,0.29376,3405.9,3405.8,1.0301]
[1736284862577,0.29381,3405.4,3405.3,4.5098]
[1736284862882,0.29381,3405.4,3405.3,4.2379]
[1736284863173,2.64838037,3405.4,3405.3,3.2078]
[1736284863378,3.11178713,3405.4,3405.3,3.2078]
[1736284863579,3.11178713,3405.4,3404.7,6.2082]
[1736284863580,2.81797713,3405.4,3404.7,6.2082]
[1736284863880,0.29386,3404.8,3404.7,6.50207]
[1736284864070,0.29386,3404.8,3404.7,6.2082]
[1736284864281,0.29386,3404.8,3404.7,6.50207]
[1736284865270,0.29386,3404.8,3404.7,5.2468]
[1736284865472,0.29386,3404.8,3404.7,2.039]
[1736284866278,0.29388,3404.6,3404.5,3.2078]
[1736284867679,0.29389,3404.4,3404.3,0.9415]
[1736284868070,0.29389,3404.4,3404.3,1.2354]
[1736284868481,0.29386,3404.9,3404.8,0.29385]
[1736284868879,2.81797713,3404.9,3404.3,0.9415]
[1736284869074,3.1618,3404.3,3404.0,3.2078]
[1736284869279,5.97977713,3404.1,3403.1,3.2078]
[1736284869474,0.29399,3403.3,3403.2,1.0276]
[1736284869677,3.2078,3403.9,3402.6,9.97148618]
[1736284869877,0.29404,3402.8,3402.6,9.97148618]
[1736284870174,3.1618,3403.3,3402.6,9.97148618]
[1736284870376,0.29404,3402.7,3402.6,6.76368618]
[1736284870583,3.2078,3403.0,3402.2,3.2078]
[1736284870775,0.29408,3402.3,3402.2,3.2078]
[1736284871179,0.29405,3402.6,3402.2,3.2078]
[1736284871481,0.29407,3402.4,3402.2,3.2078]
[1736284871782,0.29402,3402.9,3402.3,1.303]
[1736284871982,2.81797713,3402.8,3402.2,3.2078]
[1736284872185,0.29408,3402.3,3402.2,3.2078]
[1736284872579,0.29409,3402.1,3402.0,1.0258]
[1736284873987,0.2941,3402.0,3401.9,1.034]
[1736284874183,0.29414,3401.5,3401.4,1.8985]
[1736284874784,3.897,3402.3,3401.4,1.8985]
[1736284874981,3.2078,3402.5,3401.7,3.50192]
[1736284875186,3.2078,3403.0,3402.1,3.2078]
[1736284875485,0.29408,3402.3,3402.2,0.9411]
[1736284876084,3.2078,3403.0,3402.2,1.9012]
[1736284876393,0.29406,3402.5,3402.3,0.29407]
[1736284876586,3.2078,3403.0,3402.2,2.8576]
[1736284876785,3.44173404,3403.2,3402.2,2.8576]
[1736284876786,3.44173404,3403.2,3402.6,3.2078]
[1736284877088,0.294,3403.2,3403.0,3.50181]
[1736284877292,3.2078,3404.0,3403.1,3.2077]
[1736284877686,0.294,3403.2,3403.1,3.2077]
[1736284879489,3.2078,3404.0,3403.1,4.1593]
[1736284879686,0.29399,3403.3,3403.1,4.4533]
[1736284879891,0.29397,3403.6,3403.3,0.29399]
[1736284880390,0.29397,3403.5,3403.3,0.29399]
[1736284880589,3.2078,3404.0,3403.1,4.1593]
[1736284880786,0.73485,3403.9,3403.1,4.4533]
[1736284881290,0.29399,3403.3,3403.1,4.4533]
[1736284881491,0.29399,3403.3,3403.1,4.1593]
[1736284881689,0.29399,3403.3,3403.1,4.45331]
[1736284881891,0.29395,3403.8,3403.1,4.45331]
[1736284882092,3.2078,3404.0,3403.1,4.1593]
[1736284882388,0.294,3403.2,3403.1,0.9436]
[1736284882590,0.29402,3402.9,3402.8,1.304]
[1736284883187,0.29404,3402.7,3402.6,3.2078]
[1736284883589,0.29405,3402.6,3402.5,1.304]
[1736284883792,6.3696,3402.8,3402.0,2.29]
[1736284883984,0.29409,3402.1,3402.0,0.986]
[1736284885804,0.29412,3401.8,3401.7,4.5118]
[1736284886400,3.55321713,3402.1,3401.3,4.1595]
[1736284886605,0.29416,3401.3,3400.9,0.9635]
[1736284886799,0.29419,3401.0,3400.9,0.9635]
[1736284888910,0.29418,3401.2,3400.9,1.25769]
[1736284889106,3.89709,3401.9,3400.9,0.9635]
[1736284889309,3.1618,3401.9,3401.2,3.2078]
[1736284889508,0.29416,3401.3,3401.2,3.2078]
[1736284889808,0.29419,3401.0,3400.9,0.9635]
[1736284890510,0.29419,3401.0,3400.9,2.2655]
[1736284891010,0.29419,3401.0,3400.9,0.9635]
[1736284891212,0.29419,3401.0,3400.9,2.2655]
[1736284892705,0.29419,3401.0,3400.9,0.9635]
[1736284896207,5.97977713,3401.3,3400.8,3.2078]
[1736284896410,0.29421,3400.7,3400.6,1.9654]
[1736284898008,0.29421,3400.7,3400.6,3.2684]
[1736284901306,0.29421,3400.7,3400.6,1.303]
[1736284901506,0.29423,3400.5,3400.4,3.2078]
[1736284904212,0.29424,3400.4,3400.3,1.303]
[1736284905010,0.73556,3400.7,3400.2,1.0012]
[1736284905219,0.29424,3400.4,3400.3,1.303]
[1736284907010,0.29424,3400.4,3400.3,1.59725]
[1736284907209,3.94333,3400.8,3400.3,1.303]
[1736284907419,0.29424,3400.5,3400.4,0.29424]
[1736284907619,0.29423,3400.6,3400.5,0.29422]
[1736284908116,3.89728,3401.0,3400.3,4.5108]
[1736284908312,3.2078,3401.2,3400.3,4.5108]
[1736284908514,2.81797713,3401.7,3401.0,3.2078]
[1736284908713,6.64953404,3402.0,3401.4,3.2078]
[1736284908915,6.64953404,3402.0,3401.5,1.59714]
[1736284908916,0.29412,3401.8,3401.5,1.59714]
[1736284909112,0.29414,3401.6,3401.5,1.303]
[1736284909307,0.29414,3401.6,3401.5,1.59714]
[1736284909707,0.29414,3401.6,3401.5,1.303]
[1736284912713,0.29414,3401.5,3401.4,3.2078]
[1736284914021,0.29414,3401.5,3401.4,3.50195]
[1736284914424,0.29414,3401.5,3401.4,3.2078]
[1736284916416,0.29414,3401.5,3400.6,0.29422]
[1736284916417,0.29422,3400.7,3400.6,0.29422]
[1736284916725,0.29421,3400.7,3400.6,1.303]
[1736284917425,0.29421,3400.7,3400.6,1.59722]
[1736284917621,0.29421,3400.7,3400.6,1.303]
[1736284919920,0.29422,3400.6,3400.5,3.0636]
[1736284925731,4.72549464,3400.6,3399.6,3.44032464]
[1736284925934,0.29428,3399.9,3399.8,0.9361]
[1736284926233,0.29428,3399.9,3399.8,1.23039]
[1736284926444,0.29428,3399.9,3399.8,5.9361]
[1736284927233,0.29428,3399.9,3399.8,2.2371]
[1736284928329,2.28209581,3400.6,3399.8,2.2371]
[1736284928536,0.29427,3400.1,3400.0,3.2078]
[1736284928839,2.28209581,3400.3,3400.2,0.29426]
[1736284929129,4.59528245,3400.6,3400.5,0.29423]
[1736284930735,0.29421,3400.7,3400.6,0.29422]
[1736284930935,0.29421,3400.8,3400.7,0.29421]
[1736284931731,0.44138493,3401.2,3401.1,0.29418]
[1736284931930,4.59528245,3401.4,3401.1,5.57054732]
[1736284932126,3.85360523,3401.4,3401.3,0.29416]
[1736284932337,6.89292367,3402.0,3401.4,0.29415]
[1736284932338,5.74410306,3401.5,3401.4,0.29415]
[1736284932539,5.74410306,3401.5,3401.4,3.95789732]
[1736284932929,5.74410306,3401.5,3401.4,8.95789732]
[1736284933126,1.82111667,3402.0,3401.9,0.29411]
[1736284933334,2.136088,3402.2,3402.1,0.29409]
[1736284933539,2.136088,3402.2,3402.1,5.29409]
[1736284933744,2.136088,3402.2,3402.1,1.301]
[1736284934043,9.1905649,3402.4,3401.9,3.2078]
[1736284934044,1.0035,3402.3,3401.9,1.301]
[1736284934239,0.2941,3402.0,3401.9,1.301]
[1736284934934,0.2941,3402.1,3401.9,1.301]
[1736284935132,1.0035,3402.3,3401.9,4.5088]
[1736284935335,0.29409,3402.2,3401.9,4.8029]
[1736284935532,1.0035,3402.3,3401.9,4.5088]
[1736284935733,1.0035,3402.3,3402.2,0.29408]
[1736284936339,1.0035,3402.3,3402.1,0.29409]
[1736284936737,1.0035,3402.3,3402.0,2.8217854]
[1736284936934,1.0035,3402.3,3402.1,0.29409]
[1736284937442,1.0035,3402.3,3402.0,2.8217854]
[1736284937740,0.29409,3402.1,3401.9,4.5088]
[1736284937943,0.2941,3402.0,3401.9,3.2078]
[1736284938130,0.2941,3402.0,3401.9,1.301]
[1736284938547,1.0035,3402.3,3401.9,1.301]
[1736284938740,0.29408,3402.2,3402.0,0.2941]
[1736284939044,1.0035,3402.3,3401.9,4.5088]
[1736284939231,0.2941,3402.0,3401.9,4.5088]
[1736284939839,0.2941,3402.0,3401.9,3.2078]
[1736284940039,3.1618,3402.2,3401.2,4.51455219]
[1736284940237,0.29416,3401.3,3401.2,4.51455219]
[1736284940541,0.29418,3401.1,3401.0,6.76368618]
[1736284940845,3.2078,3401.3,3400.9,6.76368618]
[1736284941046,0.29419,3401.0,3400.9,6.76368618]
[1736284942645,0.2942,3400.9,3400.7,1.59521]
[1736284942943,0.29421,3400.8,3400.7,1.301]
[1736284943142,3.2078,3401.3,3400.7,1.301]
[1736284943346,0.2942,3400.9,3400.7,1.59521]
[1736284944245,0.29421,3400.8,3400.7,1.301]
[1736284944444,0.2942,3400.9,3400.7,1.301]
[1736284944645,0.29421,3400.8,3400.7,1.301]
[1736284945044,0.9831,3401.2,3400.7,1.301]
[1736284945333,0.9831,3401.2,3400.8,0.2942]
[1736284945540,0.9831,3401.2,3400.7,1.301]
[1736284945743,0.2942,3400.9,3400.7,0.29421]
[1736284945942,0.2942,3400.9,3400.8,1.301]
[1736284946445,0.9831,3401.2,3400.8,1.301]
[1736284947049,0.2942,3400.9,3400.8,1.301]
[1736284949143,0.9831,3401.2,3400.8,1.301]
[1736284949351,0.2942,3400.9,3400.8,1.301]
[1736284950052,0.9831,3401.2,3400.6,3.2078]
[1736284950247,0.29421,3400.7,3400.6,3.2078]
[1736284950451,0.29421,3400.7,3400.6,4.5068]
[1736284950845,0.29421,3400.7,3400.6,3.2078]
[1736284951046,0.29421,3400.8,3400.6,3.50202]
[1736284951247,0.29421,3400.7,3400.6,3.2078]
[1736284951648,0.8972,3401.1,3400.6,3.50202]
[1736284951849,0.29421,3400.7,3400.6,3.50202]
[1736284952150,0.29421,3400.7,3400.6,3.2078]
[1736284952946,0.29421,3400.7,3400.6,4.80102]
[1736284953354,0.29421,3400.7,3400.6,4.5068]
[1736284954555,0.29421,3400.7,3400.6,4.80102]
[1736284955355,0.29421,3400.7,3400.6,4.5068]
[1736284956954,0.29421,3400.7,3400.6,3.2078]
[1736284957153,0.8972,3401.1,3400.6,4.5068]
[1736284957348,0.29421,3400.7,3400.6,4.80102]
[1736284960749,0.29421,3400.7,3400.6,4.5068]
[1736284961255,0.29421,3400.7,3400.6,4.80102]
[1736284961754,0.29421,3400.7,3400.6,4.5068]
[1736284965566,0.29416,3401.4,3401.3,0.29415]
[1736284965759,0.9194,3401.7,3401.2,2.36224447]
[1736284966060,0.29415,3401.5,3401.4,0.29414]
[1736284966259,0.29415,3401.5,3401.4,1.59314]
[1736284966567,0.29415,3401.5,3401.4,1.299]
[1736284966759,0.29415,3401.5,3401.4,4.80095]
[1736284967459,3.45594,3401.6,3401.5,0.29414]
[1736284967963,4.60895699,3402.5,3401.5,7.36224447]
[1736284968169,4.60895699,3402.5,3402.4,2.65631447]
[1736284968364,4.60895699,3402.5,3402.4,3.95531447]
[1736284969962,0.29403,3402.8,3402.7,0.29404]
[1736284970357,4.9455,3403.0,3402.7,0.29404]
[1736284970558,0.29404,3402.8,3402.6,0.29404]
[1736284970758,0.29404,3402.7,3402.4,3.66124447]
[1736284971067,4.9455,3403.0,3402.4,3.66124447]
[1736284971360,0.29404,3402.7,3402.6,0.29404]
[1736284971572,0.29402,3402.9,3402.5,0.29406]
[1736284971772,0.29404,3402.7,3402.5,0.29406]
[1736284972963,0.29405,3402.6,3402.5,0.29406]
[1736284973266,0.29404,3402.8,3402.6,0.29405]
[1736284973459,0.29404,3402.8,3402.7,3.2078]
[1736284974270,0.29404,3402.8,3402.7,4.5068]
[1736284974464,0.29411,3401.9,3401.8,4.5068]
[1736284975162,2.48201,3402.3,3401.5,6.76368618]